bitfinex/quotes_SOLUSD_20240703
["timestamp","ask_amount","ask_price","bid_price","bid_amount"]
[1719976098442,13.44329664,151.76,151.7,0.17]
[1719976098650,6.85389664,151.76,151.7,0.17]
[1719976098953,11.71,151.76,151.7,11.88]
[1719976099150,11.71,151.76,151.71,0.17]
[1719976099529,13.43755458,151.79,151.71,0.17]
[1719976099723,6.5884,151.78,151.71,0.74181123]
[1719976100032,6.589,151.77,151.71,0.74181123]
[1719976103333,6.589,151.77,151.71,0.17]
[1719976103532,6.589,151.77,151.7,0.34]
[1719976104134,6.591,151.73,151.69,15.8486]
[1719976104330,6.5896,151.76,151.69,15.8486]
[1719976104550,23.4,151.78,151.7,1.31559542]
[1719976104849,20.0,151.77,151.69,15.8486]
[1719976105157,6.5889,151.77,151.69,15.8486]
[1719976105340,6.5889,151.77,151.7,0.34]
[1719976106626,6.84925458,151.79,151.7,0.34]
[1719976106841,43.4,151.78,151.69,15.8486]
[1719976107954,6.5893,151.76,151.69,15.8486]
[1719976108156,6.5893,151.76,151.7,0.34]
[1719976108652,6.5898,151.75,151.7,0.34]
[1719976109048,43.4,151.78,151.7,0.34]
[1719976109353,36.2828,151.77,151.65,22.9784]
[1719976109557,23.4,151.75,151.65,22.9784]
[1719976109736,6.5911,151.72,151.65,22.9784]
[1719976110652,6.5915,151.71,151.65,22.9784]
[1719976111346,6.5915,151.71,151.65,16.612]
[1719976111748,6.5915,151.71,151.66,0.17]
[1719976111939,6.5911,151.72,151.66,0.17]
[1719976112140,38.5643,151.75,151.66,0.17]
[1719976112453,20.0,151.74,151.66,0.34]
[1719976112834,6.5906,151.73,151.66,0.34]
[1719976113159,6.5914,151.72,151.66,0.34]
[1719976113335,6.5914,151.72,151.66,0.17]
[1719976114551,6.5906,151.73,151.66,0.17]
[1719976114759,6.5907,151.73,151.66,0.34]
[1719976115160,6.5912,151.72,151.66,0.34]
[1719976115340,6.5912,151.72,151.66,0.17]
[1719976115870,6.5912,151.72,151.6,123.4]
[1719976116058,23.4,151.65,151.56,0.8273919]
[1719976116259,6.5941,151.65,151.56,0.8273919]
[1719976116564,6.5947,151.64,151.57,6.5038]
[1719976116740,6.594,151.66,151.57,6.5038]
[1719976116940,20.0,151.65,151.57,6.5038]
[1719976117453,20.0,151.67,151.57,6.5038]
[1719976117935,6.5928,151.69,151.59,16.3962]
[1719976118241,20.0,151.68,151.59,16.3962]
[1719976118436,20.0,151.7,151.59,16.3962]
[1719976119053,6.5928,151.69,151.59,16.3962]
[1719976119238,20.0,151.7,151.59,16.3962]
[1719976119434,6.5932,151.68,151.59,16.3962]
[1719976119640,6.5932,151.68,151.6,0.34]
[1719976119963,20.0,151.7,151.6,0.34]
[1719976119964,6.5924,151.69,151.6,0.34]
[1719976120339,33.44047685,151.7,151.6,0.34]
[1719976121061,26.84857685,151.7,151.6,100.34]
[1719976121258,6.84857685,151.7,151.61,26.0267]
[1719976121434,6.5906,151.73,151.62,0.17]
[1719976121632,13.43752558,151.73,151.62,0.34]
[1719976121838,6.5911,151.72,151.62,0.34]
[1719976122861,13.43762558,151.73,151.62,100.34]
[1719976123067,6.84692558,151.73,151.63,15.5172]
[1719976123262,6.84692558,151.73,151.64,0.34]
[1719976124551,6.84692558,151.73,151.65,6.6359]
[1719976124754,6.5902,151.74,151.66,0.34]
[1719976124964,13.43624578,151.74,151.66,0.34]
[1719976125194,6.5907,151.73,151.66,0.34]
[1719976125346,6.5911,151.72,151.66,0.34]
[1719976126343,26.65604578,151.74,151.65,6.6359]
[1719976126543,6.84604578,151.74,151.65,6.6359]
[1719976126760,6.5914,151.72,151.65,6.6359]
[1719976127260,6.5917,151.71,151.65,6.6359]
[1719976128049,6.5919,151.7,151.65,6.6359]
[1719976128644,6.5919,151.7,151.63,15.5172]
[1719976129064,6.5927,151.69,151.63,15.5172]
[1719976129363,43.21,151.73,151.63,15.5172]
[1719976129364,6.592,151.7,151.63,15.5172]
[1719976129563,6.5915,151.71,151.63,15.5172]
[1719976129744,23.4,151.73,151.64,0.34]
[1719976129745,6.5912,151.72,151.64,0.34]
[1719976134074,6.5915,151.71,151.64,0.34]
[1719976134955,43.21,151.73,151.63,15.5172]
[1719976135163,20.0,151.72,151.63,15.5172]
[1719976135360,6.5925,151.69,151.63,15.5172]
[1719976135769,11.72,151.66,151.63,15.5172]
[1719976136567,13.44073959,151.7,151.63,15.5172]
[1719976136876,11.72,151.66,151.63,15.5172]
[1719976137062,11.72,151.67,151.63,15.5172]
[1719976138865,11.72,151.65,151.63,15.5172]
[1719976139171,11.72,151.66,151.63,15.5172]
[1719976142355,11.72,151.65,151.63,15.5172]
[1719976143184,6.5925,151.69,151.63,15.5172]
[1719976143475,11.48,151.66,151.63,15.5172]
[1719976146452,11.72,151.65,151.63,15.5172]
[1719976146675,6.5942,151.65,151.59,15.6325]
[1719976146979,11.72,151.63,151.59,15.6325]
[1719976150183,6.5938,151.66,151.59,15.6325]
[1719976150478,11.72,151.63,151.59,15.6325]
[1719976151186,6.84965306,151.68,151.6,11.72]
[1719976151478,20.0,151.67,151.59,27.3525]
[1719976151665,11.72,151.65,151.6,0.34]
[1719976151874,11.72,151.65,151.59,27.3525]
[1719976152074,11.72,151.64,151.59,27.3525]
[1719976152854,18.3148,151.64,151.59,15.6325]
[1719976153089,11.72,151.64,151.59,15.6325]
[1719976154580,11.72,151.63,151.59,15.6325]
[1719976157373,39.98,151.62,151.56,0.8273919]
[1719976157678,11.72,151.57,151.56,0.8273919]
[1719976158491,18.3176,151.57,151.56,0.8273919]
[1719976159153,6.5976,151.57,151.56,0.8273919]
[1719976159370,6.5971,151.59,151.56,0.8273919]
[1719976159561,20.0,151.62,151.56,0.8273919]
[1719976159765,11.72,151.57,151.56,0.8273919]
[1719976161170,15.44098099,151.62,151.56,0.8273919]
[1719976161367,11.72,151.6,151.56,0.8273919]
[1719976161685,11.72,151.59,151.56,0.8273919]
[1719976161863,15.3185,151.64,151.56,0.8273919]
[1719976161864,6.5964,151.6,151.56,0.8273919]
[1719976162188,6.5963,151.6,151.56,0.8273919]
[1719976163380,6.5957,151.62,151.56,0.8273919]
[1719976163691,6.5962,151.61,151.56,0.8273919]
[1719976164069,6.5955,151.62,151.56,0.8273919]
[1719976164667,31.41386988,151.67,151.56,0.8273919]
[1719976165079,51.22386988,151.67,151.56,0.8273919]
[1719976165289,51.22386988,151.67,151.57,0.34]
[1719976165883,6.5951,151.63,151.57,0.17]
[1719976166068,6.5951,151.63,151.56,0.8273919]
[1719976166582,13.40059109,151.63,151.56,0.8273919]
[1719976166988,6.80549109,151.63,151.56,0.8273919]
[1719976167175,6.5963,151.6,151.56,0.8273919]
[1719976167481,6.5968,151.59,151.56,0.8273919]
[1719976168487,6.5963,151.6,151.56,0.8273919]
[1719976170394,19.81,151.6,151.56,0.8273919]
[1719976170599,6.5975,151.58,151.56,0.8273919]
[1719976171583,6.5976,151.57,151.56,0.8273919]
[1719976171987,6.5972,151.58,151.56,0.8273919]
[1719976174575,6.5976,151.57,151.56,0.8273919]
[1719976174997,6.5972,151.58,151.56,0.8273919]
[1719976175292,6.5976,151.57,151.56,0.8273919]
[1719976175669,6.5972,151.58,151.56,0.8273919]
[1719976176797,6.5976,151.57,151.56,0.8273919]
[1719976178078,13.40502062,151.58,151.56,0.8273919]
[1719976179297,6.5976,151.57,151.56,0.8273919]
[1719976180296,26.429,151.55,151.42,16.1133]
[1719976180591,43.46,151.54,151.42,16.1133]
[1719976180807,6.6002,151.51,151.42,16.1133]
[1719976180970,6.6007,151.5,151.42,16.1133]
[1719976181171,6.6011,151.49,151.42,16.1133]
[1719976181372,6.6006,151.5,151.42,16.1133]
[1719976181797,11.74,151.49,151.42,16.1133]
[1719976182093,11.74,151.49,151.44,11.74]
[1719976182287,6.6003,151.51,151.44,11.74]
[1719976182588,11.74,151.49,151.44,11.74]
[1719976183293,6.6003,151.51,151.42,16.1133]
[1719976183496,6.6003,151.51,151.44,11.74]
[1719976183696,6.6003,151.51,151.45,0.17]
[1719976184384,6.5997,151.53,151.45,0.17]
[1719976184599,43.49,151.54,151.45,0.17]
[1719976184974,6.5997,151.53,151.45,0.17]
[1719976185172,6.6,151.52,151.45,0.17]
[1719976185688,6.5994,151.53,151.45,0.17]
[1719976185870,23.49,151.54,151.45,106.4784]
[1719976186071,6.5985,151.55,151.47,15.1479]
[1719976186283,6.5981,151.56,151.48,0.34]
[1719976186688,6.5976,151.57,151.48,0.34]
[1719976186995,6.598,151.56,151.48,0.34]
[1719976187794,36.89532062,151.58,151.48,0.34]
[1719976188299,6.5976,151.57,151.48,0.34]
[1719976190398,30.29772062,151.58,151.48,0.34]
[1719976190602,20.0,151.57,151.48,0.34]
[1719976190783,16.4984,151.55,151.42,100.0]
[1719976190981,43.49,151.54,151.42,100.0]
[1719976191299,43.49,151.54,151.41,15.9649919]
[1719976191300,23.49,151.51,151.41,15.9649919]
[1719976191685,46.63015722,151.54,151.41,15.9649919]
[1719976192006,6.6011,151.49,151.41,15.9649919]
[1719976192514,46.63015722,151.54,151.41,15.9649919]
[1719976192740,6.6005,151.51,151.41,15.9649919]
[1719976193190,6.6008,151.5,151.41,15.9649919]
[1719976193696,6.6003,151.51,151.42,0.17]
[1719976193907,23.49,151.52,151.42,0.17]
[1719976193908,6.5998,151.52,151.42,100.34]
[1719976194484,6.82015722,151.54,151.47,16.521]
[1719976194693,6.82015722,151.54,151.48,0.34]
[1719976195001,6.599,151.54,151.48,0.34]
[1719976195206,6.5985,151.55,151.48,0.34]
[1719976195785,19.81,151.55,151.42,23.49]
[1719976195987,6.6018,151.48,151.41,16.5603919]
[1719976196510,6.6014,151.49,151.41,16.5603919]
[1719976196714,6.6015,151.48,151.41,16.5603919]
[1719976197308,6.6015,151.48,151.42,0.17]
[1719976197603,36.3135,151.49,151.41,16.5603919]
[1719976197817,23.49,151.5,151.41,16.5603919]
[1719976198020,6.602,151.47,151.41,16.5603919]
[1719976198523,20.0,151.49,151.41,16.5603919]
[1719976198700,6.6025,151.46,151.41,16.5603919]
[1719976199530,23.49,151.47,151.41,16.5603919]
[1719976200017,6.6025,151.46,151.41,16.5603919]
[1719976200418,20.0,151.49,151.41,16.5603919]
[1719976200610,6.6014,151.49,151.41,16.5603919]
[1719976200811,43.49,151.51,151.42,0.34]
[1719976201306,59.9911,151.51,151.41,16.5603919]
[1719976201501,6.6014,151.49,151.41,16.5603919]
[1719976201893,5.94097315,151.48,151.41,16.5603919]
[1719976202310,6.6019,151.47,151.41,16.5603919]
[1719976202527,23.49,151.48,151.41,16.5603919]
[1719976202528,23.49,151.48,151.42,0.17]
[1719976202708,6.6011,151.49,151.42,0.17]
[1719976202907,59.9911,151.51,151.42,0.17]
[1719976204099,6.6014,151.49,151.42,0.17]
[1719976204940,6.6016,151.48,151.42,0.17]
[1719976205112,6.6025,151.46,151.41,16.5603919]
[1719976205313,59.9911,151.51,151.41,16.5603919]
[1719976205525,6.82147505,151.47,151.42,0.17]
[1719976205821,59.9911,151.51,151.42,0.17]
[1719976206027,6.82143237,151.48,151.42,0.17]
[1719976206226,6.6018,151.48,151.42,0.17]
[1719976206528,6.82136858,151.47,151.42,0.17]
[1719976207742,6.82136858,151.47,151.41,16.5603919]
[1719976207923,13.42336858,151.47,151.41,16.5603919]
[1719976208325,6.6035,151.44,151.41,16.5603919]
[1719976208516,23.49,151.46,151.41,16.5603919]
[1719976208715,6.6029,151.45,151.41,16.5603919]
[1719976208897,30.0924,151.46,151.41,16.5603919]
[1719976209104,23.49,151.46,151.41,16.5603919]
[1719976210527,23.49,151.46,151.42,0.17]
[1719976210733,15.3492,151.45,151.41,0.8273919]
[1719976210902,20.0,151.45,151.41,0.8273919]
[1719976211102,43.49,151.45,151.41,0.8273919]
[1719976211323,30.0929,151.45,151.41,0.8273919]
[1719976211704,6.6024,151.46,151.41,16.8050919]
[1719976211908,23.49,151.48,151.41,16.8050919]
[1719976212531,6.6024,151.46,151.41,16.8050919]
[1719976213109,6.6028,151.45,151.41,16.8050919]
[1719976213316,6.6032,151.45,151.41,16.8050919]
[1719976213716,6.6029,151.45,151.41,16.8050919]
[1719976214130,6.6022,151.47,151.41,16.8050919]
[1719976214313,6.6024,151.46,151.41,16.8050919]
[1719976215115,23.49,151.48,151.41,16.8050919]
[1719976215316,30.0917,151.48,151.42,0.17]
[1719976215830,23.49,151.48,151.42,0.17]
[1719976216014,13.42230329,151.49,151.42,0.17]
[1719976216330,6.6015,151.48,151.42,0.34]
[1719976216717,6.6023,151.47,151.41,16.8050919]
[1719976216917,6.82090329,151.49,151.41,16.8050919]
[1719976217215,6.82090329,151.49,151.42,0.34]
[1719976217414,13.42210329,151.49,151.42,0.34]
[1719976217627,6.82090329,151.49,151.45,100.0]
[1719976217939,6.598,151.56,151.46,20.34]
[1719976218236,6.5977,151.57,151.47,22.1968]
[1719976218419,30.0877,151.57,151.48,0.34]
[1719976218618,6.598,151.56,151.48,0.34]
[1719976218814,6.5985,151.55,151.48,0.34]
[1719976219026,23.49,151.54,151.47,22.1968]
[1719976219228,6.5996,151.53,151.47,22.1968]
[1719976219433,30.0889,151.54,151.47,22.1968]
[1719976219825,23.49,151.54,151.48,0.17]
[1719976220221,23.46464733,151.54,151.48,0.17]
[1719976220834,30.06374733,151.54,151.48,0.17]
[1719976221732,6.5994,151.53,151.47,22.1968]
[1719976221930,30.06354733,151.54,151.47,22.1968]
[1719976222853,23.46464733,151.54,151.47,22.1968]
[1719976223338,23.49,151.51,151.47,22.1968]
[1719976223855,30.0906,151.51,151.42,22.353]
[1719976224036,6.6007,151.5,151.42,22.353]
[1719976224237,30.0902,151.51,151.42,22.353]
[1719976225425,6.6006,151.5,151.42,22.353]
[1719976226142,6.601,151.49,151.43,0.34]
[1719976226330,23.49,151.51,151.43,0.34]
[1719976226733,23.49,151.48,151.42,22.353]
[1719976227030,6.602,151.47,151.42,22.353]
[1719976227672,30.0915,151.48,151.42,22.353]
[1719976227832,6.6015,151.48,151.42,22.353]
[1719976228137,6.6011,151.49,151.42,22.353]
[1719976228345,6.6015,151.48,151.42,22.353]
[1719976228743,6.6012,151.49,151.42,22.353]
[1719976228936,6.6015,151.48,151.42,22.353]
[1719976230278,6.81350801,151.5,151.42,22.353]
[1719976230279,26.62350801,151.5,151.42,22.353]
[1719976230552,23.49,151.47,151.42,22.353]
[1719976231064,23.49,151.47,151.41,0.8273919]
[1719976232156,6.6033,151.44,151.41,0.8273919]
[1719976233232,23.49,151.44,151.41,0.8273919]
[1719976233557,30.0933,151.44,151.41,0.8273919]
[1719976234762,6.6038,151.43,151.41,0.8273919]
[1719976234935,6.6041,151.42,151.41,0.8273919]
[1719976236146,6.6037,151.43,151.41,0.8273919]
[1719976236461,6.6041,151.42,151.41,0.8273919]
[1719976236841,6.6038,151.43,151.41,0.8273919]
[1719976237054,6.6041,151.42,151.41,0.8273919]
[1719976237242,6.6038,151.43,151.41,0.8273919]
[1719976237448,6.6041,151.42,151.41,0.8273919]
[1719976238666,6.6038,151.43,151.41,0.8273919]
[1719976239141,13.40650548,151.43,151.41,0.8273919]
[1719976239342,6.6041,151.42,151.41,0.8273919]
[1719976239556,6.80270548,151.43,151.41,0.8273919]
[1719976239756,23.49,151.44,151.41,0.8273919]
[1719976240149,30.30295939,151.44,151.41,0.8273919]
[1719976240349,6.604,151.43,151.41,0.8273919]
[1719976240660,6.6041,151.42,151.41,0.8273919]
[1719976242461,50.0941,151.42,151.41,0.8273919]
[1719976242660,23.49,151.42,151.41,0.8273919]
[1719976242963,6.6037,151.43,151.41,0.8273919]
[1719976243155,30.30295939,151.44,151.41,0.8273919]
[1719976243353,36.90625939,151.44,151.41,0.8273919]
[1719976243762,11.76,151.42,151.41,0.8273919]
[1719976243954,18.3641,151.42,151.41,0.8273919]
[1719976244669,18.3641,151.42,151.39,0.03197]
[1719976244670,6.605,151.4,151.39,0.03197]
[1719976244986,18.365,151.4,151.39,0.03197]
[1719976245566,6.606,151.38,151.31,15.0525]
[1719976246079,30.1354,151.39,151.31,15.0525]
[1719976246244,6.6059,151.38,151.31,15.0525]
[1719976247059,6.6064,151.37,151.31,15.0525]
[1719976247238,20.0,151.4,151.31,15.0525]
[1719976247443,6.6042,151.42,151.31,115.0525]
[1719976248052,6.6042,151.42,151.31,15.0525]
[1719976248259,6.81295939,151.44,151.31,15.0525]
[1719976248454,23.53,151.39,151.32,0.17]
[1719976249058,23.53,151.39,151.31,15.0525]
[1719976249474,30.1354,151.39,151.31,15.0525]
[1719976250371,23.53,151.36,151.31,15.0525]
[1719976251147,6.6072,151.35,151.31,15.0525]
[1719976251484,23.53,151.36,151.31,15.0525]
[1719976252072,6.81658706,151.38,151.31,15.0525]
[1719976252374,20.0,151.37,151.31,15.0525]
[1719976253151,6.81658706,151.38,151.31,15.0525]
[1719976253345,6.81658706,151.38,151.32,0.34]
[1719976253582,23.53,151.43,151.32,0.34]
[1719976253767,6.81705248,151.4,151.32,0.34]
[1719976254076,6.6041,151.42,151.32,0.34]
[1719976254368,6.81853165,151.41,151.32,100.34]
[1719976254551,6.81853165,151.41,151.33,21.4635]
[1719976254751,23.53,151.45,151.34,0.34]
[1719976254967,23.53,151.42,151.34,0.34]
[1719976255180,23.53,151.42,151.33,21.4635]
[1719976255672,6.605,151.4,151.33,21.4635]
[1719976255852,6.6046,151.41,151.33,21.4635]
[1719976256473,30.1343,151.42,151.33,21.4635]
[1719976256672,20.0,151.41,151.33,21.4635]
[1719976257767,26.4198,151.29,151.27,5.36608411]
[1719976257983,20.0,151.29,151.27,5.36608411]
[1719976258161,23.53,151.31,151.27,5.36608411]
[1719976258367,43.53,151.31,151.27,5.36608411]
[1719976258876,6.6098,151.29,151.26,0.8273919]
[1719976259095,23.53,151.31,151.26,0.8273919]
[1719976259256,6.6093,151.3,151.26,0.8273919]
[1719976259678,6.6098,151.29,151.26,0.8273919]
[1719976259980,20.0,151.29,151.26,0.8273919]
[1719976260156,26.6098,151.29,151.26,0.8273919]
[1719976261177,46.4198,151.29,151.26,0.8273919]
[1719976261678,26.6098,151.29,151.26,0.8273919]
[1719976261886,63.34,151.29,151.26,0.8273919]
[1719976262186,26.4206,151.27,151.26,0.8273919]
[1719976262383,55.69697147,151.27,151.2,0.03918933]
[1719976262570,23.53,151.22,151.2,0.03918933]
[1719976263770,23.53,151.22,151.2,6.65278933]
[1719976263970,6.6121,151.24,151.2,0.03918933]
[1719976264178,23.53,151.24,151.2,6.65268933]
[1719976264378,23.53,151.24,151.2,0.03918933]
[1719976265385,30.142,151.24,151.2,0.03918933]
[1719976265888,23.53,151.24,151.2,0.03918933]
[1719976266081,23.53,151.24,151.2,6.65288933]
[1719976266263,23.53,151.24,151.21,6.6132]
[1719976267269,23.53,151.24,151.2,6.65288933]
[1719976268291,23.53,151.24,151.2,0.03918933]
[1719976268591,23.53,151.21,151.2,0.03918933]
[1719976268967,6.6119,151.25,151.2,0.03918933]
[1719976269168,50.142,151.24,151.2,0.03918933]
[1719976269463,43.53,151.24,151.2,0.03918933]
[1719976269664,50.1421,151.24,151.2,0.03918933]
[1719976269871,23.53,151.21,151.2,0.03918933]
[1719976270198,43.53,151.21,151.2,0.03918933]
[1719976270376,23.53,151.21,151.2,0.03918933]
[1719976270580,30.1433,151.21,151.2,0.03918933]
[1719976270771,50.1433,151.21,151.2,0.03918933]
[1719976270976,6.6145,151.19,151.13,6.6164]
[1719976271183,53.08747147,151.21,151.1,0.8273919]
[1719976271371,26.6137,151.2,151.15,6.6158]
[1719976271565,20.0,151.2,151.1,0.8273919]
[1719976271770,6.6145,151.19,151.1,0.8273919]
[1719976271991,30.1451,151.17,151.12,6.617]
[1719976272196,53.08747147,151.2,151.1,0.8273919]
[1719976272373,6.6176,151.11,151.1,0.8273919]
[1719976272689,23.53,151.11,151.1,0.8273919]
[1719976273272,6.6176,151.11,151.1,0.8273919]
[1719976273475,50.1476,151.11,151.1,0.8273919]
[1719976274173,43.53,151.11,151.1,0.8273919]
[1719976274485,43.53,151.11,151.01,6.622]
[1719976274671,43.53,151.11,151.02,6.6216]
[1719976274672,23.53,151.06,151.02,6.6216]
[1719976274994,23.53,151.06,150.95,0.8273919]
[1719976275329,23.53,151.06,151.02,6.6214]
[1719976275466,23.53,151.06,150.96,100.0]
[1719976275888,23.53,151.06,151.03,6.6211]
[1719976276278,30.1498,151.06,151.0,6.6223]
[1719976276588,23.53,151.08,150.95,0.8273919]
[1719976276775,20.0,151.07,150.95,100.8273919]
[1719976277189,20.0,151.07,150.95,0.8273919]
[1719976277384,23.53,151.1,150.95,0.8273919]
[1719976277385,20.0,151.09,150.95,0.8273919]
[1719976277577,43.53,151.09,151.03,6.6211]
[1719976277891,43.53,151.09,150.95,0.8273919]
[1719976278078,43.53,151.09,151.03,6.621]
[1719976278286,6.6194,151.08,150.95,0.8273919]
[1719976278475,6.6204,151.05,150.99,6.6229]
[1719976278680,20.0,151.04,150.95,0.8273919]
[1719976278988,30.1489,151.09,151.03,6.6211]
[1719976279189,23.53,151.2,150.97,100.0]
[1719976279190,31.45002362,151.13,150.97,100.0]
[1719976279389,31.45002362,151.13,150.96,23.53]
[1719976279390,6.6186,151.09,150.96,23.53]
[1719976279582,6.619,151.08,151.02,6.6215]
[1719976279782,31.45002362,151.13,150.96,23.53]
[1719976280089,6.1552,151.1,151.04,6.6203]
[1719976280300,6.1552,151.1,150.97,120.17]
[1719976280301,12.7734,151.1,151.05,15.8966]
[1719976280474,31.45002362,151.13,151.05,6.6203]
[1719976280669,31.45002362,151.13,150.99,100.0]
[1719976280877,6.6172,151.12,151.0,0.34]
[1719976281076,15.0761,151.1,150.99,0.34]
[1719976281379,6.3025,151.09,150.95,0.8273919]
[1719976281599,23.53,151.06,150.95,0.8273919]
[1719976281797,23.53,151.03,150.95,0.8273919]
[1719976282106,21.35,151.02,150.96,6.6241]
[1719976282313,21.35,151.02,150.95,0.8273919]
[1719976282476,21.35,151.02,151.0,6.6223]
[1719976282680,21.35,151.02,150.95,0.8273919]
[1719976282874,29.6106,151.06,150.95,0.8273919]
[1719976283113,23.53,151.03,150.95,0.8273919]
[1719976283398,26.5437,150.98,150.95,0.8273919]
[1719976283584,26.5442,150.96,150.95,0.8273919]
[1719976283780,26.5442,150.96,150.85,6.6289]
[1719976283781,40.09,150.96,150.85,6.6289]
[1719976284103,26.64,150.99,150.8,0.8273919]
[1719976284104,21.4333,150.93,150.8,0.8273919]
[1719976284281,6.6274,150.89,150.83,6.6298]
[1719976284596,19.01725902,150.92,150.8,100.8273919]
[1719976284796,19.01725902,150.92,150.8,0.8273919]
[1719976285000,20.0,150.91,150.78,100.0]
[1719976285298,20.0,150.91,150.79,100.0]
[1719976285299,6.6266,150.91,150.79,100.0]
[1719976285480,6.0806,150.99,150.79,100.0]
[1719976285481,22.6387,150.99,150.79,100.0]
[1719976285683,6.6261,150.92,150.85,6.6288]
[1719976285883,6.6261,150.92,150.78,0.4265919]
[1719976286078,0.17,150.98,150.79,100.0]
[1719976286313,0.17,150.98,150.78,0.4265919]
[1719976286314,6.626,150.92,150.86,6.6284]
[1719976286512,20.0,150.91,150.78,0.4265919]
[1719976286728,6.6278,150.88,150.78,0.4265919]
[1719976287015,6.6287,150.86,150.78,0.4265919]
[1719976287234,6.6285,150.87,150.78,0.4265919]
[1719976287402,20.0,150.86,150.78,0.4265919]
[1719976287730,35.3984,150.86,150.78,0.4265919]
[1719976288096,20.0,150.86,150.78,0.4265919]
[1719976288301,20.0,150.87,150.78,0.4265919]
[1719976288796,20.26,150.86,150.78,0.4265919]
[1719976288993,39.92,150.85,150.78,0.4265919]
[1719976289298,6.6308,150.82,150.78,0.4265919]
[1719976289517,26.6311,150.81,150.78,0.4265919]
[1719976289824,20.0,150.81,150.78,0.4265919]
[1719976290118,6.6286,150.87,150.78,0.4265919]
[1719976290348,20.0,150.86,150.78,0.4265919]
[1719976290495,6.6286,150.87,150.78,0.4265919]
[1719976290691,20.0,150.89,150.78,0.4265919]
[1719976290692,20.0,150.86,150.78,0.4265919]
[1719976290892,6.6285,150.87,150.78,0.4265919]
[1719976291199,30.39106824,150.93,150.79,0.17]
[1719976291393,15.9607,150.93,150.79,0.17]
[1719976291603,6.627,150.9,150.79,0.17]
[1719976291903,15.9607,150.93,150.78,0.4265919]
[1719976291904,7.39099341,150.92,150.78,0.4265919]
[1719976292227,6.63,150.83,150.78,0.4265919]
[1719976292532,19.92,150.89,150.78,0.4265919]
[1719976292729,6.6308,150.81,150.78,0.4265919]
[1719976293098,36.4914,150.87,150.78,0.4265919]
[1719976293099,16.574,150.84,150.78,0.4265919]
[1719976293424,6.6317,150.79,150.78,0.4265919]
[1719976293642,26.6317,150.79,150.78,0.4265919]
[1719976294000,20.0,150.79,150.78,0.4265919]
[1719976294217,46.5517,150.79,150.78,0.4265919]
[1719976294515,20.0,150.79,150.78,0.4265919]
[1719976294723,26.64,150.85,150.78,0.4265919]
[1719976294952,6.6306,150.82,150.78,0.4265919]
[1719976295343,20.0,150.81,150.78,0.4265919]
[1719976295845,6.6293,150.85,150.78,0.4265919]
[1719976296051,6.6296,150.84,150.78,0.4265919]
[1719976296225,6.63,150.83,150.78,0.4265919]
[1719976296421,19.92,150.87,150.78,0.4265919]
[1719976296619,30.20319341,150.88,150.78,0.4265919]
[1719976296855,6.6289,150.86,150.78,0.4265919]
[1719976297220,6.6282,150.87,150.78,0.4265919]
[1719976297420,6.6286,150.86,150.78,0.4265919]
[1719976297636,6.6282,150.87,150.78,0.4265919]
[1719976297948,33.188977,150.9,150.78,0.4265919]
[1719976298130,6.6274,150.89,150.79,0.34]
[1719976298332,6.6268,150.91,150.79,0.34]
[1719976298526,19.92,150.92,150.79,0.34]
[1719976298727,26.5467,150.91,150.79,0.34]
[1719976298931,19.92,150.91,150.79,0.34]